fUST/lending_fUST_20260221
["ID","MTS","AMOUNT","RATE_DAILY","PERIOD"]
[406233460,1771645840640,-300.0,0.00015872,2]
[406233462,1771645840650,-300.0,0.00015872,2]
[406233464,1771645840659,-300.0,0.00015872,2]
[406233466,1771645840668,-300.0,0.00015872,2]
[406233468,1771645840677,-300.0,0.00015872,2]
[406233470,1771645840687,-300.0,0.00015872,2]
[406233472,1771645840697,-300.0,0.00015872,2]
[406233474,1771645840705,-300.0,0.00015872,2]
[406233476,1771645840714,-300.0,0.00015872,2]
[406233478,1771645840723,-300.0,0.00015872,2]
[406233480,1771645840732,-300.0,0.00015872,2]
[406233482,1771645840741,-300.0,0.00015872,2]
[406233484,1771645840750,-300.0,0.00015872,2]
[406233486,1771645840759,-300.0,0.00015872,2]
[406233488,1771645840768,-187.566,0.00016002,2]
[406233490,1771645840777,-685.5501008,0.00016007,2]
[406233492,1771645840786,-2500.0,0.00016012,2]
[406233494,1771645840795,-508.52,0.00016438,2]
[406233496,1771645840803,-508.52,0.00016438,2]
[406233498,1771645840812,-508.52,0.00016438,2]
[406233500,1771645840821,-508.52,0.00016438,2]
[406233502,1771645840830,-508.52,0.00016438,2]
[406233504,1771645840839,-508.52,0.00016438,2]
[406233505,1771645840848,-508.52,0.00016438,2]
[406233507,1771645840857,-508.52,0.00016438,2]
[406233510,1771645840866,-508.52,0.00016438,2]
[406233511,1771645840875,-156.0,0.00016438,2]
[406233513,1771645840884,-151.0,0.00016438,2]
[406233515,1771645840893,-151.0,0.00016438,2]
[406233517,1771645840902,-151.0,0.00016438,2]
[406233519,1771645840911,-151.0,0.00016438,2]
[406233521,1771645840920,-151.0,0.00016438,2]
[406233523,1771645840929,-151.0,0.00016438,2]
[406233525,1771645840938,-151.0,0.00016438,2]
[406233527,1771645840947,-151.0,0.00016438,2]
[406233529,1771645840956,-151.0,0.00016438,2]
[406233531,1771645840965,-151.0,0.00016438,2]
[406233533,1771645840974,-151.0,0.00016438,2]
[406233535,1771645840982,-151.0,0.00016438,2]
[406233537,1771645840991,-151.0,0.00016438,2]
[406233539,1771645841000,-238.78225,0.00016438,2]
[406233541,1771645841009,-152.751666,0.00016438,2]
[406233543,1771645841018,-151.0,0.00016438,2]
[406233545,1771645841026,-181.347161,0.00016438,2]
[406233547,1771645841035,-4060.55225681,0.00016584,2]
[406233549,1771645841044,-152.9669037,0.00016674,2]
[406233551,1771645841053,-600.0,0.00016788,2]
[406233553,1771645841062,-619.0,0.00016788,2]
[406233555,1771645841074,-619.0,0.00016793,2]
[406233557,1771645841083,-160.0,0.000168,3]
[406233559,1771645841092,-161.15810213,0.000168,5]
[406233561,1771645841101,-619.0,0.00016888,2]
[406233563,1771645841111,-619.0,0.0001692,2]
[406233565,1771645841119,-619.0,0.00016952,2]
[406233567,1771645841129,-619.0,0.0001697,2]
[406233569,1771645841138,-1001.0,0.00017,2]
[406233571,1771645841150,-619.0,0.0001703,2]
[406233573,1771645841159,-619.0,0.00017031,2]
[406233575,1771645841168,-619.0,0.00017049,2]
[406233577,1771645841177,-619.0,0.00017104,2]
[406233579,1771645841186,-619.0,0.00017139,2]
[406233581,1771645841195,-619.0,0.00017145,2]
[406233583,1771645841204,-619.0,0.00017156,2]
[406233585,1771645841213,-619.0,0.00017162,2]
[406233587,1771645841222,-619.0,0.000172,2]
[406233589,1771645841231,-619.0,0.00017211,2]
[406233591,1771645841241,-619.0,0.00017243,2]
[406233593,1771645841250,-619.0,0.00017246,2]
[406233595,1771645841259,-508.52,0.00017283,2]
[406233597,1771645841268,-619.0,0.00017283,2]
[406233599,1771645841277,-619.0,0.00017284,2]
[406233601,1771645841286,-15936.06775956,0.000173,2]
[406233603,1771645841295,-619.0,0.00017306,2]
[406233605,1771645841303,-619.0,0.00017365,2]
[406233607,1771645841312,-508.52,0.00017367,2]
[406233609,1771645841321,-619.0,0.0001738,2]
[406233611,1771645841330,-619.0,0.00017424,2]
[406233613,1771645841339,-619.0,0.00017451,2]
[406233615,1771645841348,-635.345,0.00017493,2]
[406233617,1771645841357,-590.121,0.00017493,2]
[406233618,1771645841367,-155.0,0.00017602,2]
[406233620,1771645841376,-487.0,0.00017602,2]
[406233623,1771645841386,-487.0,0.00017602,2]
[406233624,1771645841396,-487.0,0.00017602,2]
[406233626,1771645841406,-487.0,0.00017602,2]
[406233628,1771645841415,-487.0,0.00017602,2]
[406233630,1771645841424,-487.0,0.00017602,2]
[406233632,1771645841433,-487.0,0.00017602,2]
[406233634,1771645841443,-487.0,0.00017602,2]
[406233636,1771645841451,-487.0,0.00017602,2]
[406233638,1771645841460,-948.21,0.00017602,2]
[406233640,1771645841469,-800.0,0.0001761,2]
[406233642,1771645841478,-800.0,0.00017639,2]
[406233644,1771645841488,-800.0,0.00017667,2]
[406233646,1771645841497,-4350.22279436,0.00017678,2]
[406233648,1771645841506,-800.0,0.00017679,2]
[406233650,1771645841515,-417.95296067,0.00017683,2]
[406233652,1771645841524,-800.0,0.00017704,2]
[406233655,1771645841534,-800.0,0.00017718,2]
[406233657,1771645841543,-816.34380253,0.00017724,2]
[406233658,1771645841552,-800.0,0.00017726,2]
[406233661,1771645841561,-800.0,0.00017743,2]
[406233663,1771645841571,-800.0,0.00017763,2]
[406233672,1771645841652,-800.0,0.00017779,2]
[406233674,1771645841661,-150.0,0.00017808,2]
[406233676,1771645841671,-800.0,0.00017826,2]
[406233679,1771645841680,-800.0,0.00017828,2]
[406233680,1771645841691,-800.0,0.00017845,2]
[406233682,1771645841700,-430.43570081,0.00017864,2]
[406233685,1771645841710,-508.52,0.00017899,2]
[406233687,1771645841721,-8414.22519814,0.000179,2]
[406233688,1771645841730,-45447.59753375,0.0001799,2]
[406233691,1771645841739,-508.52,0.00017999,2]
[406233692,1771645841749,-508.52,0.00017999,2]
[406233695,1771645841758,-508.52,0.00017999,2]
[406233696,1771645841767,-508.52,0.00017999,2]
[406233699,1771645841777,-73892.25689177,0.00018,2]
[406233700,1771645841786,-1000.0,0.00018,2]
[406233703,1771645841795,-151.0,0.00018,2]
[406233704,1771645841804,-712.0,0.00018075,5]
[406233706,1771645841813,-544.0,0.00018075,5]
[406233708,1771645841822,-528.14,0.0001826,2]
[406233710,1771645841832,-250.0,0.00018356,2]
[406233712,1771645841842,-720.0,0.00018467,2]
[406233714,1771645841851,-4639.8933319,0.00018771,2]
[406233716,1771645841860,-350.0,0.00018904,2]
[406233718,1771645841869,-508.52,0.00018989,2]
[406233720,1771645841878,-508.52,0.00018989,2]
[406233722,1771645841887,-508.52,0.00018999,2]
[406233724,1771645841896,-18507.82557627,0.00019,2]
[406233727,1771645841905,-151.0,0.000191,2]
[406233730,1771645841926,-517.28,0.00019178,2]
[406233732,1771645841936,-1278.0165,0.00019178,2]
[406233734,1771645841946,-151.0,0.00019178,2]
[406233736,1771645841955,-151.0,0.00019178,2]
[406233738,1771645841965,-151.0,0.00019178,2]
[406233740,1771645841975,-198.308015,0.00019178,2]
[406233742,1771645841985,-164.86,0.000192,2]
[406233744,1771645841994,-1247.24,0.000192,2]
[406233747,1771645842005,-508.52,0.00019449,2]
[406233749,1771645842016,-508.52,0.00019449,2]
[406233751,1771645842026,-508.52,0.00019449,2]
[406233752,1771645842036,-508.52,0.00019449,2]
[406233753,1771645842045,-508.64494375,0.00019449,2]
[406233754,1771645842055,-156.06206848,0.00019452,2]
[406233755,1771645842064,-8414.2251981,0.00019564,2]
[406233756,1771645842077,-260.8935,0.00019589,3]
[406233757,1771645842087,-4929.56386944,0.00019865,2]
[406233758,1771645842097,-72000.0,0.0002,2]
[406233759,1771645842106,-627.40819353,0.0002,20]
[406233760,1771645842117,-207.0,0.0002,10]
[406233761,1771645842127,-1180.41473383,0.0002,10]
[406233762,1771645842136,-1000.0,0.0002,2]
[406233763,1771645842147,-150.172509,0.0002,2]
[406233764,1771645842156,-151.0,0.000201,3]
[406233765,1771645842166,-864.0,0.00020314,2]
[406233766,1771645842176,-5291.65204137,0.00020959,2]
[406233767,1771645842185,-5015.81082769,0.00021,5]
[406233768,1771645842195,-1000.0,0.00021,2]
[406233769,1771645842204,-10000.0,0.00021159,7]
[406233770,1771645842214,-10000.0,0.00021159,7]
[406233771,1771645842223,-10000.0,0.00021159,7]
[406233772,1771645842233,-10000.0,0.00021159,7]
[406233773,1771645842243,-10000.0,0.00021159,7]
[406233774,1771645842252,-2784.0,0.00021159,7]
[406233776,1771645842262,-15515.72670099,0.000212,30]
[406233778,1771645842271,-1567.37,0.000212,2]
[406233780,1771645842280,-151.0,0.000212,3]
[406233782,1771645842290,-8414.2251981,0.00021229,2]
[406233784,1771645842299,-2000.0,0.00021917,2]
[406233785,1771645842309,-151.0,0.00021918,2]
[406233786,1771645842318,-151.0,0.00021918,2]
[406233787,1771645842329,-151.0,0.00021918,2]
[406233789,1771645842339,-151.0,0.00021918,2]
[406233791,1771645842348,-151.0,0.00021918,2]
[406233793,1771645842358,-151.0,0.00021918,2]
[406233794,1771645842368,-151.0,0.00021918,2]
[406233796,1771645842378,-197.896029,0.00021918,2]
[406233797,1771645842388,-339.43,0.00022,7]
[406233798,1771645842397,-1000.0,0.00022,2]
[406233799,1771645842407,-5436.48731014,0.00022052,2]
[406233800,1771645842420,-272.15,0.00022286,2]
[406233801,1771645842430,-500.0,0.00022293,2]
[406233802,1771645842439,-1247.24,0.000223,14]
[406233803,1771645842449,-151.0,0.000223,6]
[406233804,1771645842459,-1000.0,0.00022345,10]
[406233805,1771645842469,-800.0,0.00022587,2]
[406233806,1771645842479,-500.0,0.00022663,2]
[406233807,1771645842490,-159.976,0.00022676,2]
[406233808,1771645842499,-8414.2251981,0.00022893,2]
[406233809,1771645842510,-2000.0,0.00022986,7]
[406233810,1771645842519,-1000.0,0.00023,2]
[406233811,1771645842528,-500.0,0.00023021,2]
[406233812,1771645842538,-800.0,0.00023096,2]
[406233813,1771645842547,-800.0,0.00023128,2]
[406233814,1771645842557,-6595.16946031,0.00023146,2]
[406233815,1771645842566,-151.0,0.000234,7]
[406233816,1771645842575,-500.0,0.00023433,2]
[406233818,1771645842585,-500.0,0.0002364,2]
[406233820,1771645842594,-6921.72393207,0.000237,30]
[406233822,1771645842603,-500.0,0.00023775,2]
[406233823,1771645842612,-1567.37,0.000238,2]
[406233824,1771645842622,-800.0,0.00023857,2]
[406233825,1771645842631,-743.73449086,0.00024,7]
[406233826,1771645842640,-2105.05297551,0.00024,60]
[406233827,1771645842649,-2965.08217509,0.00024,30]
[406233828,1771645842659,-1000.0,0.00024,2]
[406233829,1771645842669,-500.0,0.00024191,2]
[406233830,1771645842678,-7029.67526662,0.00024239,2]
[406233831,1771645842687,-339.43,0.000243,7]
[406233832,1771645842696,-800.0,0.00024399,2]
[406233833,1771645842705,-141403.82024462,0.00024404,2]
[406233834,1771645842714,-264522.60277062,0.00024404,2]
[406233835,1771645842723,-800.0,0.0002442,2]
[406233836,1771645842732,-743.87469872,0.00024504,2]
[406233837,1771645842742,-8414.2251981,0.00024557,2]
[406233838,1771645842751,-800.0,0.0002457,2]
[406233839,1771645842761,-1000.0,0.0002458,10]
[406233840,1771645842770,-244.0,0.0002458,10]
[406233841,1771645842779,-675294.13965735,0.00024651,2]
[406233844,1771645842833,-500.0,0.00013018,2]
[406233845,1771645842842,-237.31264536,0.00013018,2]
[406233934,1771647032065,-2398.4614882,0.00011309,2]
[406233936,1771647032076,-160.65423686,0.00011423,2]
[406233938,1771647032085,-277.50695083,0.00011596,2]
[406233940,1771647032094,-753.66986945,0.00012814,2]
[406233942,1771647032103,-300.0,0.00013272,2]
[406233944,1771647032112,-300.0,0.00013272,2]
[406233946,1771647032121,-1200.0,0.00013272,2]
[406233948,1771647032130,-300.0,0.00013273,2]
[406233950,1771647032139,-300.0,0.00013273,2]
[406233952,1771647032152,-300.0,0.00013273,2]
[406233954,1771647032162,-994.07463534,0.00013274,2]
[406233956,1771647032171,-300.0,0.0001354,2]
[406233958,1771647032180,-300.0,0.00013541,2]
[406233960,1771647032189,-300.0,0.00013541,2]
[406233962,1771647032198,-300.0,0.00013541,2]
[406233964,1771647032208,-300.0,0.00013541,2]
[406233966,1771647032217,-300.0,0.00013541,2]
[406233968,1771647032226,-300.0,0.00013541,2]
[406233970,1771647032235,-300.0,0.00013541,2]
[406233972,1771647032245,-300.0,0.00013541,2]
[406233974,1771647032254,-300.0,0.00013541,2]
[406233975,1771647032263,-300.0,0.00013541,2]
[406233976,1771647032273,-300.0,0.00013541,2]
[406233977,1771647032282,-300.0,0.00013541,2]
[406233978,1771647032291,-300.0,0.00013541,2]
[406233979,1771647032300,-300.0,0.00013541,2]
[406233980,1771647032309,-55.4786266,0.00013541,2]
[406233981,1771647032321,-244.5213734,0.00013541,2]
[406233982,1771647032331,-563.80199041,0.00013811,2]
[406233983,1771647032342,-36.19800959,0.00013811,2]
[406233984,1771647032352,-1465.06017246,0.00014175,2]
[406233985,1771647032361,-581.5579709,0.00014693,2]
[406233986,1771647032370,-720.0,0.00015192,2]
[406233987,1771647032380,-4026.6172721,0.00015424,2]
[406233988,1771647032390,-500.0,0.00015644,2]
[406233989,1771647032399,-587.73802295,0.00015644,2]
[406233990,1771647032410,-150.211,0.00015645,2]
[406233991,1771647032419,-150.408,0.00015645,2]
[406233992,1771647032431,-428.0,0.00015645,2]
[406233993,1771647032440,-835.681,0.00015645,2]
[406233994,1771647032449,-199.88,0.00015645,2]
[406233995,1771647032458,-1569.43039705,0.0001571,2]
[406233996,1771647032470,-440.41335325,0.0001571,2]
[406234035,1771647038397,-770.27659476,0.0001571,2]
[406234037,1771647038407,-864.0,0.00016711,2]
[406234039,1771647038417,-2837.29687417,0.00017245,2]
[406234041,1771647038427,-153.884,0.0001789,2]
[406234043,1771647038436,-195.06223939,0.00018172,2]
[406234046,1771647038447,-1327.94958831,0.00018172,2]
[406234591,1771647044190,-754.69435239,0.00018172,2]
[406234592,1771647044199,-192.85863098,0.00018274,2]
[406234594,1771647044209,-500.0,0.00018274,2]
[406234596,1771647044219,-250.0,0.00018274,2]
[406234598,1771647044228,-500.0,0.00018274,2]
[406234600,1771647044238,-500.0,0.00018274,2]
[406234602,1771647044247,-500.0,0.00018274,2]
[406234603,1771647044256,-187.78006525,0.00018274,2]
[406234605,1771647044266,-500.0,0.00018274,2]
[406234607,1771647044275,-256.76160013,0.00018274,2]
[406234609,1771647044285,-500.0,0.00018274,2]
[406234611,1771647044295,-136.43540847,0.00018274,2]
[406234624,1771647044436,-363.56459153,0.00018274,2]
[406234626,1771647044445,-231.74509215,0.00018274,2]
[406234628,1771647044454,-3008.82646188,0.00018781,2]
[406234630,1771647044463,-158.0199469,0.000197,2]
[406234632,1771647044471,-772.35295137,0.00020316,2]
[406234760,1771647046148,-581.85775248,0.00020316,2]
[406237403,1771648232299,-500.0,0.00013699,2]
[406237405,1771648232310,-272.00799618,0.00013788,2]
[406237407,1771648232319,-1350.07404259,0.00014175,2]
[406237409,1771648232329,-1000.0,0.00014247,2]
[406237411,1771648232338,-1319.82664801,0.00014795,2]
[406237413,1771648232347,-300.0,0.00015237,2]
[406237415,1771648232357,-2550.14808535,0.00015864,2]
[406237417,1771648232366,-300.0,0.00016284,2]
[406237419,1771648232375,-300.0,0.00016284,2]
[406237421,1771648232383,-300.0,0.00016284,2]
[406237423,1771648232393,-300.0,0.00016284,2]
[406237424,1771648232402,-1200.0,0.00016284,2]
[406237425,1771648232411,-4561.43170509,0.00016286,2]
[406237426,1771648232421,-428.0,0.0001639,2]
[406237427,1771648232430,-726.0,0.0001639,2]
[406237428,1771648232439,-199.88,0.0001639,2]
[406237429,1771648232449,-5100.2135695,0.0001657,2]
[406237430,1771648232458,-368.67521695,0.00017552,2]
[406237463,1771648240927,-1579.77123545,0.00017552,2]
[406237468,1771648246285,-492.56,0.00017552,2]
[406237525,1771649438690,-800.0,0.000155,3]
[406237527,1771649438700,-43.19859868,0.00016658,2]
[406237530,1771649438712,-537.77026099,0.00016658,2]
[406237532,1771649438721,-3336.72033034,0.00016803,2]
[406237541,1771649438796,-488.43984676,0.00016803,2]
[406237543,1771649438805,-1828.03740439,0.00018148,2]
[406237746,1771649446608,-3682.11353565,0.00018148,2]
[406237747,1771649446618,-513.93163554,0.00018148,2]
[406237748,1771649446628,-3825.1601771,0.00018549,2]
[406237749,1771649446637,-153.885,0.00018619,2]
[406237750,1771649446646,-212.50120971,0.00018619,2]
[406237751,1771649446655,-542.84855928,0.00018649,2]
[406237752,1771649446665,-600.0,0.0001902,2]
[406237753,1771649446675,-341.78683991,0.00019899,2]
[406237754,1771649446686,-1651.20606766,0.00019899,2]
[406237755,1771649446695,-500.0,0.00019997,2]
[406237756,1771649446704,-500.0,0.00019997,2]
[406237757,1771649446714,-500.0,0.00019997,2]
[406237758,1771649446723,-145.46720248,0.00019997,2]
[406237916,1771650631704,-200.0,0.00016,3]
[406237918,1771650631714,-968.32887159,0.00016025,2]
[406237920,1771650631725,-129.23738619,0.00016025,2]
[406237922,1771650631734,-14267.86431668,0.00016115,2]
[406237925,1771650631762,-1223.97989955,0.00016115,2]
[406238330,1771650645767,-2351.74561045,0.00016115,2]
[406238499,1771651831818,-1000.0,0.00016195,2]
[406238500,1771651831830,-534.01186649,0.00016195,2]
[406238501,1771651831840,-150.0,0.00016287,2]
[406238502,1771651831849,-487.0,0.00016324,2]
[406238503,1771651831858,-1269.2125998,0.00016325,2]
[406238540,1771651838056,-831.42412036,0.00016325,2]
[406238542,1771651838067,-1180.06277819,0.00016325,2]
[406238544,1771651838076,-436.0839538,0.00016691,2]
[406238546,1771651838086,-300.0,0.00016713,2]
[406238548,1771651838095,-2314.39141887,0.00016834,2]
[406238550,1771651838104,-11796.5318709,0.00016864,2]
[406238552,1771651838114,-151.0,0.00016864,2]
[406238554,1771651838123,-158.155989,0.00016864,2]
[406238556,1771651838133,-1324.779777,0.00016934,2]
[406238558,1771651838146,-4445.0609831,0.00016934,2]
[406238560,1771651838155,-6010.0689841,0.00016934,2]
[406238562,1771651838164,-164.68007,0.00016934,2]
[406238564,1771651838176,-154.584857,0.00016934,2]
[406238566,1771651838187,-1855.463872,0.00017,2]
[406238568,1771651838196,-16918.8604039,0.0001734,2]
[406238569,1771651838205,-150.0,0.00017347,2]
[406238571,1771651838215,-150.0,0.00017402,2]
[406238573,1771651838225,-200.0,0.00017457,2]
[406238575,1771651838234,-2210.12555648,0.00017541,2]
[406238577,1771651838244,-500.0,0.0001762,2]
[406238579,1771651838253,-500.0,0.0001762,2]
[406238581,1771651838263,-500.0,0.0001762,2]
[406238583,1771651838273,-500.0,0.0001762,2]
[406238585,1771651838282,-500.0,0.0001762,2]
[406238587,1771651838292,-500.0,0.0001762,2]
[406238589,1771651838301,-500.0,0.0001762,2]
[406238591,1771651838311,-500.0,0.0001762,2]
[406238593,1771651838320,-500.0,0.0001762,2]
[406238595,1771651838329,-500.0,0.0001762,2]
[406238597,1771651838339,-500.0,0.0001762,2]
[406238599,1771651838348,-553.88785883,0.0001762,2]
[406238601,1771651838357,-515.50748005,0.0001762,2]
[406238603,1771651838367,-500.0,0.0001762,2]
[406238605,1771651838376,-500.0,0.0001762,2]
[406238608,1771651838392,-500.0,0.0001762,2]
[406238609,1771651838401,-500.0,0.0001762,2]
[406238611,1771651838410,-500.0,0.0001762,2]
[406238613,1771651838420,-500.0,0.0001762,2]
[406238615,1771651838429,-367.05538815,0.0001762,2]
[406238617,1771651838439,-500.0,0.0001762,2]
[406238620,1771651838449,-500.0,0.0001762,2]
[406238621,1771651838459,-500.0,0.0001762,2]
[406238623,1771651838468,-500.0,0.0001762,2]
[406238625,1771651838477,-500.0,0.0001762,2]
[406238627,1771651838487,-500.0,0.0001762,2]
[406238629,1771651838496,-500.0,0.0001762,2]
[406238632,1771651838506,-167.78845296,0.0001762,2]
[406238634,1771651838515,-500.0,0.0001762,2]
[406238636,1771651838524,-500.0,0.0001762,2]
[406238637,1771651838534,-500.0,0.0001762,2]
[406238639,1771651838543,-4051.27344042,0.00017621,2]
[406238641,1771651838552,-1000.0,0.00017621,2]
[406238643,1771651838561,-1000.0,0.00017621,2]
[406238645,1771651838571,-1000.0,0.00017621,2]
[406238647,1771651838580,-1000.0,0.00017621,2]
[406238650,1771651838590,-1000.0,0.00017621,2]
[406238652,1771651838599,-1000.0,0.00017621,2]
[406238653,1771651838609,-1000.0,0.00017621,2]
[406238655,1771651838618,-1000.0,0.00017621,2]
[406238657,1771651838627,-1000.0,0.00017621,2]
[406238659,1771651838637,-1000.0,0.00017621,2]
[406238661,1771651838647,-1000.0,0.00017621,2]
[406238663,1771651838656,-446.053695,0.00017621,2]
[406238665,1771651838666,-506.75861086,0.00017621,2]
[406238667,1771651838675,-300.0,0.0001826,2]
[406238669,1771651838685,-177.0,0.00018287,2]
[406238672,1771651838694,-3082.786,0.000184,2]
[406238674,1771651838704,-153.885,0.000184,2]
[406238676,1771651838713,-267.73387436,0.00018499,2]
[406238678,1771651838723,-3930.53495289,0.000185,2]
[406238848,1771651843377,-2009.44605227,0.000185,2]
[406238849,1771651843602,-7458.50849799,0.000185,2]
[406238856,1771651846369,-629.31,0.000185,2]
[406239069,1771653038221,-150.0,0.00017005,2]
[406239070,1771653038231,-1512.02667368,0.00017141,2]
[406239315,1771653040650,-726.0,0.00017005,2]
[406239317,1771653040659,-549.12992923,0.00017141,2]
[406239319,1771653040668,-713.3462736,0.00017947,2]
[406239321,1771653040677,-248.44647,0.00018112,2]
[406239323,1771653040686,-1000.0,0.00018161,2]
[406239325,1771653040695,-3972.31320593,0.00018435,2]
[406239327,1771653040704,-162.63687725,0.00018499,2]
[406239329,1771653040713,-292.74637906,0.00018499,2]
[406239331,1771653040722,-559.31134384,0.00018499,2]
[406239333,1771653040731,-1006.76041891,0.00018499,2]
[406239335,1771653040739,-3670.20226331,0.000185,2]
[406239337,1771653040754,-580.56103853,0.000185,2]
[406239859,1771653046137,-199.88,0.00017005,2]
[406239861,1771653046147,-150.0,0.00017073,2]
[406239863,1771653046156,-344.80086225,0.000185,2]
[406242254,1771654238474,-214.08370497,0.00016439,2]
[406242255,1771654238485,-736.23797223,0.00016439,2]
[406242256,1771654238497,-168.62399807,0.00017005,2]
[406242257,1771654238507,-171.31549636,0.00017081,2]
[406242258,1771654238517,-1149.95669165,0.00018001,2]
[406242337,1771654243563,-285.93017093,0.00017005,2]
[406242338,1771654243683,-440.06982907,0.00017005,2]
[406242339,1771654243692,-199.88,0.00017005,2]
[406242340,1771654243701,-797.01948185,0.00018001,2]
[406242341,1771654243711,-155.6057987,0.00018054,2]
[406242342,1771654243720,-535.0097052,0.00018054,2]
[406242343,1771654243729,-484.0,0.00018258,2]
[406242344,1771654243738,-591.205492,0.00018259,2]
[406242345,1771654243747,-189.2217189,0.00018458,2]
[406242346,1771654243756,-201.0,0.00018499,2]
[406242347,1771654243764,-299.0,0.00018499,2]
[406242348,1771654243774,-1964.63633276,0.000185,2]
[406242349,1771654243783,-500.0,0.00019,2]
[406242350,1771654243793,-150.0,0.00019721,2]
[406242351,1771654243804,-150.0,0.00019776,2]
[406242352,1771654243813,-211.1326747,0.00019831,2]
[406242353,1771654243824,-1157.11959615,0.000199,2]
[406242356,1771654246335,-763.41,0.000199,2]
[406242592,1771655446377,-502.45548491,0.00013699,2]
[406242593,1771655446387,-173.57824473,0.00015042,2]
[406242594,1771655446436,-199.96028715,0.00015042,2]
[406242595,1771655446445,-2140.56111391,0.00016644,2]
[406242596,1771655446455,-4383.14740644,0.00017,2]
[406242597,1771655446465,-199.88,0.00017559,2]
[406242598,1771655446474,-269.897,0.00017559,2]
[406242599,1771655446483,-2128.31756978,0.0001829,2]
[406242600,1771655446495,-454.932072,0.0001829,2]
[406242904,1771656640246,-288.482,0.00017861,2]
[406242905,1771656640255,-263.32630165,0.00017861,2]
[406242906,1771656640264,-401.2572789,0.00017908,2]
[406242907,1771656640273,-834.1800825,0.00017908,2]
[406242908,1771656640282,-1547.87258616,0.0001829,2]
[406242909,1771656640291,-323.584257,0.00018341,2]
[406242910,1771656640300,-170.86573382,0.000185,2]
[406242911,1771656640309,-159.78411701,0.000185,2]
[406242912,1771656640319,-318.0,0.00018633,2]
[406242913,1771656640328,-1200.0,0.00019272,2]
[406242914,1771656640337,-1431.31301398,0.00019273,2]
[406242915,1771656640347,-714.0,0.00019273,2]
[406242916,1771656640356,-714.0,0.00019593,2]
[406242917,1771656640365,-173.45905736,0.00019597,2]
[406242918,1771656640374,-158.46308352,0.00019721,2]
[406242919,1771656640384,-300.0,0.00019788,2]
[406242920,1771656640392,-834.1800825,0.00019791,2]
[406242921,1771656640401,-2437.85272558,0.000199,2]
[406242922,1771656640412,-2342.18218896,0.000199,2]
[406243471,1771656645621,-6115.43548931,0.000199,2]
[406243473,1771656645632,-2025.09249152,0.000199,2]
[406243475,1771656645642,-4217.66836321,0.00019936,2]
[406243477,1771656645651,-158.325,0.00019936,2]
[406243479,1771656645660,-7049.0,0.0002,7]
[406243481,1771656645669,-2273.44576828,0.0002,2]
[406243483,1771656645679,-653.17866868,0.0002,2]
[406243484,1771656645687,-250.0,0.0002,10]
[406243486,1771656645696,-401.2572789,0.00020007,2]
[406243488,1771656645705,-250.0,0.000201,10]
[406243490,1771656645714,-405.324591,0.000202,10]
[406243492,1771656645723,-287.61141062,0.00020614,2]
[406243494,1771656645732,-307.55832087,0.00020617,2]
[406243496,1771656645743,-181.0,0.00020861,2]
[406243498,1771656645752,-3000.0,0.00021,2]
[406243500,1771656645760,-3000.0,0.0002101,2]
[406243503,1771656645770,-3000.0,0.0002102,2]
[406243506,1771656645779,-3000.0,0.0002103,2]
[406243508,1771656645791,-5256.008785,0.0002104,2]
[406243510,1771656645800,-600.0,0.00021419,10]